fUSD/lending_fUSD_20260620
["ID","MTS","AMOUNT","RATE_DAILY","PERIOD"]
[425809240,1781926241000,-500.0,0.00026809,2]
[425809238,1781926241000,-500.0,0.00026809,2]
[425809242,1781926241000,-417.06247972,0.00026809,2]
[425809239,1781926241000,-500.0,0.00026809,2]
[425809243,1781926241000,-293.19139532,0.00026825,2]
[425809244,1781926241000,-166.29,0.00026826,2]
[425809241,1781926241000,-500.0,0.00026809,2]
[425809215,1781926241000,-152.0,0.00026809,2]
[425809228,1781926241000,-500.0,0.00026809,2]
[425809218,1781926241000,-152.0,0.00026809,2]
[425809194,1781926241000,-1148.61238259,0.00026809,2]
[425809220,1781926241000,-500.0,0.00026809,2]
[425809193,1781926241000,-1107.63007,0.00026809,2]
[425809195,1781926241000,-1191.11104074,0.00026809,2]
[425809192,1781926241000,-1068.11,0.00026809,2]
[425809198,1781926241000,-1328.27659266,0.00026809,2]
[425809197,1781926241000,-1280.88388877,0.00026809,2]
[425809196,1781926241000,-1235.18214925,0.00026809,2]
[425809199,1781926241000,-1377.42282658,0.00026809,2]
[425809201,1781926241000,-1428.38747117,0.00026809,2]
[425809200,1781926241000,-174.61919141,0.00026809,2]
[425809202,1781926241000,-1481.2378076,0.00026809,2]
[425809203,1781926241000,-402.88228263,0.00026809,2]
[425809221,1781926241000,-152.0,0.00026809,2]
[425809209,1781926241000,-1651.81367706,0.00026809,2]
[425809207,1781926241000,-578.20924308,0.00026809,2]
[425809206,1781926241000,-1592.87721992,0.00026809,2]
[425809204,1781926241000,-1536.04360648,0.00026809,2]
[425809210,1781926241000,-209.40437684,0.00026809,2]
[425809208,1781926241000,-151.0,0.00026809,2]
[425809213,1781926241000,-152.0,0.00026809,2]
[425809211,1781926241000,-1712.93078311,0.00026809,2]
[425809212,1781926241000,-1776.30922209,0.00026809,2]
[425809214,1781926241000,-1842.0326633,0.00026809,2]
[425809217,1781926241000,-1980.8648231,0.00026809,2]
[425809216,1781926241000,-1910.18787185,0.00026809,2]
[425809205,1781926241000,-151.0,0.00026809,2]
[425809248,1781926241000,-152.0,0.00026894,30]
[425809245,1781926241000,-402.88228263,0.00026864,2]
[425809249,1781926241000,-402.88228263,0.00026919,2]
[425809279,1781926241000,-402.88228263,0.00027194,2]
[425809278,1781926241000,-3599.0,0.00027154,5]
[425809282,1781926241000,-151.0,0.00027249,2]
[425809286,1781926241000,-151.0,0.00027357,2]
[425809281,1781926241000,-402.88228263,0.00027249,2]
[425809284,1781926241000,-151.0,0.00027304,2]
[425809288,1781926241000,-384.78176723,0.00027357,2]
[425809283,1781926241000,-402.88228263,0.00027304,2]
[425809285,1781926241000,-181.08010149,0.00027357,2]
[425809289,1781926241000,-151.0,0.00027357,2]
[425809287,1781926241000,-217.15233878,0.00027357,2]
[425809290,1781926241000,-417.06247972,0.00027357,2]
[425809292,1781926241000,-151.0,0.00027359,2]
[425809291,1781926241000,-402.88228275,0.00027359,2]
[425809293,1781926241000,-426.61380229,0.00027378,2]
[425809295,1781926241000,-516.4258457,0.00027397,2]
[425809296,1781926241000,-1500.0,0.00027397,2]
[425809301,1781926241000,-151.000006,0.00027397,2]
[425809294,1781926241000,-150.0,0.00027397,30]
[425809297,1781926241000,-542.68886294,0.00027397,2]
[425809300,1781926241000,-151.0,0.00027397,2]
[425809299,1781926241000,-807.66,0.00027397,2]
[425809298,1781926241000,-1000.0,0.00027397,20]
[425809302,1781926241000,-300.0,0.00027397,2]
[425809247,1781926241000,-500.0,0.00026876,2]
[425809280,1781926241000,-151.0,0.00027194,2]
[425809277,1781926241000,-2910.0,0.00027154,5]
[425809304,1781926241000,-1154.72966037,0.000274,2]
[425809275,1781926241000,-402.88228263,0.00027139,2]
[425809276,1781926241000,-151.0,0.00027139,2]
[425809250,1781926241000,-151.0,0.00026919,2]
[425809303,1781926241000,-12511.27,0.00027397,10]
[425809252,1781926241000,-402.88228263,0.00026974,2]
[425809253,1781926241000,-151.0,0.00026974,2]
[425809254,1781926241000,-350.0,0.00026987,2]
[425809256,1781926241000,-2000.0,0.00027,2]
[425809255,1781926241000,-1020.0,0.00027,2]
[425809257,1781926241000,-200.0,0.00027024,2]
[425809260,1781926241000,-151.0,0.00027083,2]
[425809258,1781926241000,-402.88228263,0.00027029,2]
[425809259,1781926241000,-151.0,0.00027029,2]
[425809262,1781926241000,-151.0,0.00027084,2]
[425809251,1781926241000,-350.0,0.00026943,2]
[425809269,1781926241000,-262.0,0.00027123,2]
[425809264,1781926241000,-1740.3112364,0.000271,2]
[425809273,1781926241000,-703.0,0.00027123,2]
[425809271,1781926241000,-198.32056753,0.00027123,2]
[425809272,1781926241000,-1160.0,0.00027123,2]
[425809268,1781926241000,-1673.01175127,0.00027105,2]
[425809274,1781926241000,-505.0,0.00027137,2]
[425809261,1781926241000,-402.88228263,0.00027084,2]
[425809265,1781926241000,-375.21054744,0.000271,2]
[425809266,1781926241000,-282.43099278,0.000271,2]
[425809263,1781926241000,-1154.72966037,0.000271,2]
[425809270,1781926241000,-790.0,0.00027123,2]
[425809267,1781926241000,-192.96812832,0.000271,2]
[425809343,1781926242000,-346.77,0.00028272,2]
[425809341,1781926242000,-1000.0,0.00028213,2]
[425809344,1781926242000,-310.0,0.000283,2]
[425809342,1781926242000,-151.0,0.00028267,2]
[425809338,1781926242000,-505.0,0.00028116,3]
[425809337,1781926242000,-192.94240279,0.00028,30]
[425809336,1781926242000,-5703.99503645,0.00028,4]
[425809335,1781926242000,-352.89,0.0002799,2]
[425809340,1781926242000,-1740.3112364,0.000282,2]
[425809339,1781926242000,-151.0,0.00028179,2]
[425809333,1781926242000,-151.0,0.00027905,2]
[425809349,1781926242000,-233.5188934,0.00028453,2]
[425809346,1781926242000,-200.13817817,0.0002842,2]
[425809347,1781926242000,-194.72792766,0.00028453,2]
[425809348,1781926242000,-151.0,0.00028453,2]
[425809352,1781926242000,-417.06247972,0.00028453,2]
[425809353,1781926242000,-1740.3112364,0.000285,2]
[425809356,1781926242000,-200.0,0.00028548,2]
[425809355,1781926242000,-500.0,0.00028513,16]
[425809354,1781926242000,-21054.44,0.000285,7]
[425809351,1781926242000,-151.0,0.00028453,2]
[425809350,1781926242000,-384.78176723,0.00028453,2]
[425809359,1781926242000,-165.28,0.0002863,2]
[425809328,1781926242000,-1740.3112364,0.000279,2]
[425809345,1781926242000,-500.0,0.00028369,7]
[425809329,1781926242000,-187.78006524,0.00027905,2]
[425809321,1781926242000,-187.0,0.00027635,2]
[425809334,1781926242000,-417.06247972,0.00027905,2]
[425809305,1781926242000,-1740.3112364,0.000274,2]
[425809306,1781926242000,-375.21054744,0.000274,2]
[425809307,1781926242000,-282.43099278,0.000274,2]
[425809310,1781926242000,-350.0,0.00027442,2]
[425809311,1781926242000,-350.0,0.00027461,2]
[425809308,1781926242000,-192.96812832,0.000274,2]
[425809309,1781926242000,-16140.98860557,0.00027428,2]
[425809312,1781926242000,-500.0,0.000275,7]
[425809313,1781926242000,-150.0,0.00027552,5]
[425809314,1781926242000,-286.78306349,0.00027572,2]
[425809315,1781926242000,-1154.72966037,0.000276,2]
[425809332,1781926242000,-384.78176723,0.00027905,2]
[425809318,1781926242000,-282.43099278,0.000276,2]
[425809323,1781926242000,-1783.53,0.00027781,2]
[425809316,1781926242000,-1740.3112364,0.000276,2]
[425809317,1781926242000,-375.21054744,0.000276,2]
[425809320,1781926242000,-151.0,0.00027631,2]
[425809322,1781926242000,-500.0,0.00027683,15]
[425809324,1781926242000,-350.0,0.00027784,2]
[425809325,1781926242000,-317.29,0.00027819,2]
[425809326,1781926242000,-350.0,0.00027862,2]
[425809331,1781926242000,-225.18697532,0.00027905,2]
[425809327,1781926242000,-200.0,0.00027863,2]
[425809330,1781926242000,-151.0,0.00027905,2]
[425809319,1781926242000,-192.96812832,0.000276,2]
[425809358,1781926242000,-156.83,0.0002863,30]
[425809357,1781926242000,-16140.98860557,0.00028562,2]
[425809360,1781926242000,-208.79,0.0002863,30]
[425809392,1781926242000,-152.0,0.00028921,30]
[425809390,1781926242000,-286.0,0.00028921,30]
[425809393,1781926242000,-154.0,0.00028921,30]
[425809395,1781926242000,-155.0,0.00028921,30]
[425809398,1781926242000,-173.0,0.00028921,30]
[425809396,1781926242000,-156.0,0.00028921,30]
[425809397,1781926242000,-157.0,0.00028921,30]
[425809400,1781926242000,-158.4,0.00028931,7]
[425809394,1781926242000,-161.0,0.00028921,30]
[425809399,1781926242000,-158.41,0.00028931,7]
[425809401,1781926242000,-200.0,0.00028937,2]
[425809391,1781926242000,-153.0,0.00028921,30]
[425809404,1781926242000,-6095.122,0.00028995,21]
[425809405,1781926242000,-169.194,0.00028995,21]
[425809407,1781926242000,-549.0,0.00029,7]
[425809406,1781926242000,-1740.3112364,0.00029,2]
[425809408,1781926242000,-201.93286098,0.00029001,2]
[425809411,1781926242000,-384.78176723,0.00029001,2]
[425809410,1781926242000,-319.16129845,0.00029001,2]
[425809409,1781926242000,-151.0,0.00029001,2]
[425809412,1781926242000,-151.0,0.00029001,2]
[425809414,1781926242000,-417.06247972,0.00029001,2]
[425809415,1781926242000,-156.83,0.00029006,7]
[425809361,1781926242000,-158.41,0.0002863,30]
[425809402,1781926242000,-165.28,0.00028974,7]
[425809388,1781926242000,-153.0,0.0002892,30]
[425809403,1781926242000,-165.24,0.00028974,7]
[425809389,1781926242000,-217.0,0.0002892,30]
[425809364,1781926242000,-208.8,0.0002863,30]
[425809384,1781926242000,-1229.25,0.00028908,2]
[425809363,1781926242000,-158.4,0.0002863,30]
[425809366,1781926242000,-165.24,0.00028716,7]
[425809365,1781926242000,-165.28,0.00028716,7]
[425809367,1781926242000,-151.0,0.00028727,2]
[425809362,1781926242000,-165.24,0.0002863,2]
[425809368,1781926242000,-293.19139532,0.00028749,2]
[425809370,1781926242000,-150.0,0.00028767,30]
[425809371,1781926242000,-1740.3112364,0.000288,2]
[425809372,1781926242000,-165.28,0.00028802,30]
[425809374,1781926242000,-150.0,0.00028855,2]
[425809376,1781926242000,-165.28,0.00028888,2]
[425809369,1781926242000,-542.68886294,0.00028766,2]
[425809375,1781926242000,-195.0,0.00028877,5]
[425809385,1781926242000,-6081.0,0.00028908,2]
[425809387,1781926242000,-159.0,0.0002892,30]
[425809383,1781926242000,-1368.605,0.00028908,2]
[425809382,1781926242000,-1279.283,0.00028908,2]
[425809380,1781926242000,-457.0,0.00028904,2]
[425809386,1781926242000,-159.0,0.0002892,30]
[425809379,1781926242000,-1705.0,0.00028904,2]
[425809378,1781926242000,-203.0,0.000289,2]
[425809373,1781926242000,-165.24,0.00028802,30]
[425809377,1781926242000,-165.24,0.00028888,2]
[425809381,1781926242000,-387.0,0.00028908,2]
[425809460,1781926243000,-450.0,0.00029833,7]
[425809456,1781926243000,-612.0,0.00029833,7]
[425809459,1781926243000,-208.34967408,0.00029833,7]
[425809453,1781926243000,-16140.98860557,0.00029697,2]
[425809451,1781926243000,-461.84895732,0.00029663,2]
[425809449,1781926243000,-152.0,0.00029624,3]
[425809450,1781926243000,-158.4,0.00029634,7]
[425809448,1781926243000,-562.5975,0.00029604,2]
[425809441,1781926243000,-209.40437684,0.00029549,2]
[425809443,1781926243000,-384.78176723,0.00029549,2]
[425809455,1781926243000,-156.83,0.0002976,30]
[425809452,1781926243000,-200.0,0.00029694,2]
[425809458,1781926243000,-217.54413292,0.00029833,7]
[425809471,1781926243000,-286.0,0.00029921,30]
[425809457,1781926243000,-15514.97010178,0.00029833,7]
[425809462,1781926243000,-1856.76,0.0002988,2]
[425809461,1781926243000,-461.84895732,0.00029835,7]
[425809463,1781926243000,-1000.0,0.0002988,2]
[425809468,1781926243000,-153.0,0.0002992,30]
[425809464,1781926243000,-1785.14,0.0002988,2]
[425809470,1781926243000,-461.84895732,0.0002992,7]
[425809466,1781926243000,-159.0,0.0002992,30]
[425809465,1781926243000,-200.0,0.00029917,2]
[425809467,1781926243000,-159.0,0.0002992,30]
[425809469,1781926243000,-217.0,0.0002992,30]
[425809444,1781926243000,-151.0,0.00029549,2]
[425809454,1781926243000,-461.84895732,0.00029749,2]
[425809447,1781926243000,-461.84895732,0.00029578,2]
[425809417,1781926243000,-165.24,0.0002906,30]
[425809442,1781926243000,-151.0,0.00029549,2]
[425809472,1781926243000,-153.0,0.00029921,30]
[425809416,1781926243000,-165.28,0.0002906,30]
[425809418,1781926243000,-505.0,0.00029095,4]
[425809421,1781926243000,-165.24,0.00029146,2]
[425809423,1781926243000,-165.31,0.00029232,7]
[425809420,1781926243000,-165.28,0.00029146,2]
[425809419,1781926243000,-159.88744748,0.0002911,2]
[425809422,1781926243000,-350.0,0.00029177,2]
[425809424,1781926243000,-158.41,0.00029232,2]
[425809428,1781926243000,-151.0,0.00029275,2]
[425809425,1781926243000,-165.25,0.00029232,7]
[425809427,1781926243000,-200.0,0.00029233,2]
[425809446,1781926243000,-179.31805248,0.00029577,2]
[425809426,1781926243000,-158.4,0.00029232,2]
[425809429,1781926243000,-1673.01175127,0.00029277,2]
[425809434,1781926243000,-156.83,0.00029383,2]
[425809433,1781926243000,-500.0,0.00029369,18]
[425809431,1781926243000,-170.85,0.0002933,2]
[425809436,1781926243000,-461.84895732,0.00029492,2]
[425809437,1781926243000,-153.94965239,0.00029492,2]
[425809432,1781926243000,-1219.49536524,0.0002935,2]
[425809435,1781926243000,-350.0,0.00029411,2]
[425809439,1781926243000,-599.60298507,0.00029548,2]
[425809438,1781926243000,-150.0,0.00029534,2]
[425809440,1781926243000,-747.80937859,0.00029548,2]
[425809445,1781926243000,-417.06247972,0.00029549,2]
[425809430,1781926243000,-700.94,0.00029315,8]
[425809475,1781926243000,-161.0,0.00029921,30]
[425809487,1781926243000,-150.0,0.00029945,2]
[425809474,1781926243000,-154.0,0.00029921,30]
[425809509,1781926243000,-542.68886294,0.00030135,2]
[425809510,1781926243000,-251.14868189,0.00030136,2]
[425809507,1781926243000,-549.0,0.000301,7]
[425809508,1781926243000,-9771.31284168,0.0003013,7]
[425809511,1781926243000,-156.83,0.00030136,7]
[425809514,1781926243000,-310.08192823,0.00030137,2]
[425809519,1781926243000,-550.0,0.00030137,120]
[425809517,1781926243000,-500.0,0.00030137,3]
[425809513,1781926243000,-807.66,0.00030137,2]
[425809516,1781926243000,-1774.0,0.00030137,120]
[425809515,1781926243000,-188.68392309,0.00030137,30]
[425809512,1781926243000,-150.0,0.00030137,30]
[425809500,1781926243000,-189.15814388,0.00030097,2]
[425809518,1781926243000,-274.0,0.00030137,120]
[425809522,1781926243000,-654.0,0.00030137,120]
[425809521,1781926243000,-435.0,0.00030137,120]
[425809523,1781926243000,-186.0,0.00030137,120]
[425809526,1781926243000,-1549.88,0.00030137,120]
[425809531,1781926243000,-1024.804243,0.00030164,2]
[425809530,1781926243000,-1000.0,0.00030164,2]
[425809528,1781926243000,-1000.0,0.00030164,2]
[425809529,1781926243000,-1000.0,0.00030164,2]
[425809527,1781926243000,-1000.0,0.00030164,2]
[425809525,1781926243000,-200.0,0.00030137,2]
[425809532,1781926243000,-461.84895732,0.00030177,7]
[425809524,1781926243000,-2117.0,0.00030137,120]
[425809520,1781926243000,-550.0,0.00030137,120]
[425809504,1781926243000,-417.06247972,0.00030097,2]
[425809473,1781926243000,-152.0,0.00029921,30]
[425809501,1781926243000,-217.15233878,0.00030097,2]
[425809479,1781926243000,-173.0,0.00029921,30]
[425809476,1781926243000,-155.0,0.00029921,30]
[425809477,1781926243000,-156.0,0.00029921,30]
[425809478,1781926243000,-157.0,0.00029921,30]
[425809482,1781926243000,-150.0,0.00029945,2]
[425809481,1781926243000,-250.0,0.00029945,2]
[425809480,1781926243000,-321.4841,0.00029945,2]
[425809506,1781926243000,-5300.0,0.000301,30]
[425809483,1781926243000,-150.179,0.00029945,2]
[425809485,1781926243000,-150.257,0.00029945,2]
[425809533,1781926243000,-244.0,0.00030201,5]
[425809486,1781926243000,-167.235,0.00029945,2]
[425809489,1781926243000,-150.196,0.00029945,2]
[425809484,1781926243000,-150.0,0.00029945,2]
[425809490,1781926243000,-150.0,0.00029945,2]
[425809488,1781926243000,-150.0,0.00029945,2]
[425809502,1781926243000,-384.78176723,0.00030097,2]
[425809505,1781926243000,-666.33,0.000301,30]
[425809499,1781926243000,-461.84895732,0.00030092,7]
[425809498,1781926243000,-350.0,0.00030082,2]
[425809497,1781926243000,-505.0,0.00030074,5]
[425809503,1781926243000,-151.0,0.00030097,2]
[425809494,1781926243000,-197.71678137,0.0003,2]
[425809492,1781926243000,-454.33978018,0.0003,60]
[425809495,1781926243000,-461.84895732,0.00030006,7]
[425809491,1781926243000,-599.0,0.0003,2]
[425809493,1781926243000,-246.14,0.0003,2]
[425809496,1781926243000,-194.0,0.00030037,2]
[425809571,1781926244000,-150.0,0.00030875,2]
[425809574,1781926244000,-159.0,0.0003092,30]
[425809576,1781926244000,-217.0,0.0003092,30]
[425809572,1781926244000,-23650.7627284,0.00030881,2]
[425809569,1781926244000,-152.57020975,0.00030875,2]
[425809566,1781926244000,-16140.98860557,0.00030831,2]
[425809567,1781926244000,-248.0,0.0003085,2]
[425809568,1781926244000,-461.84895732,0.00030862,14]
[425809564,1781926244000,-24812.8902071,0.00030808,2]
[425809562,1781926244000,-200.0,0.00030743,2]
[425809570,1781926244000,-150.0,0.00030875,2]
[425809577,1781926244000,-286.0,0.00030921,30]
[425809587,1781926244000,-731.7104239,0.00030963,2]
[425809573,1781926244000,-159.0,0.0003092,30]
[425809579,1781926244000,-152.0,0.00030921,30]
[425809580,1781926244000,-154.0,0.00030921,30]
[425809578,1781926244000,-153.0,0.00030921,30]
[425809582,1781926244000,-155.0,0.00030921,30]
[425809581,1781926244000,-161.0,0.00030921,30]
[425809584,1781926244000,-157.0,0.00030921,30]
[425809585,1781926244000,-173.0,0.00030921,30]
[425809583,1781926244000,-156.0,0.00030921,30]
[425809586,1781926244000,-461.84895732,0.00030948,14]
[425809589,1781926244000,-597.46,0.00030989,30]
[425809588,1781926244000,-1797.5634757,0.00030967,2]
[425809563,1781926244000,-461.84895732,0.00030777,14]
[425809575,1781926244000,-153.0,0.0003092,30]
[425809560,1781926244000,-461.84895732,0.00030691,14]
[425809555,1781926244000,-384.78176723,0.00030645,2]
[425809559,1781926244000,-597.46,0.00030685,30]
[425809591,1781926244000,-171.51459977,0.00031,14]
[425809534,1781926244000,-151.0,0.00030239,2]
[425809535,1781926244000,-500.0,0.0003025,20]
[425809537,1781926244000,-275.26435144,0.00030292,2]
[425809536,1781926244000,-461.84895732,0.00030263,7]
[425809538,1781926244000,-461.84895732,0.00030348,7]
[425809539,1781926244000,-200.0,0.00030424,120]
[425809540,1781926244000,-200.0,0.00030424,120]
[425809543,1781926244000,-200.0,0.00030438,2]
[425809542,1781926244000,-461.84895732,0.00030434,14]
[425809541,1781926244000,-166.0,0.00030424,120]
[425809544,1781926244000,-200.0,0.0003045,2]
[425809561,1781926244000,-153.94965239,0.00030734,14]
[425809546,1781926244000,-461.84895732,0.0003052,14]
[425809545,1781926244000,-199.61251871,0.00030501,30]
[425809553,1781926244000,-461.84895732,0.00030605,14]
[425809548,1781926244000,-731.7104239,0.00030572,2]
[425809549,1781926244000,-269.93,0.00030593,120]
[425809552,1781926244000,-383.0,0.00030605,30]
[425809551,1781926244000,-200.0,0.00030602,2]
[425809554,1781926244000,-225.18697532,0.00030645,2]
[425809550,1781926244000,-2000.0,0.000306,2]
[425809556,1781926244000,-151.0,0.00030645,2]
[425809557,1781926244000,-417.06247972,0.00030645,2]
[425809558,1781926244000,-293.19139532,0.00030674,2]
[425809565,1781926244000,-1549.88,0.00030822,120]
[425809547,1781926244000,-1717.0,0.00030561,10]
[425809590,1781926244000,-1059.30923474,0.00031,11]
[425809595,1781926244000,-947.74,0.00031,2]
[425809594,1781926244000,-150.0,0.00031,2]
[425809625,1781926244000,-156.7,0.00031321,19]
[425809626,1781926244000,-1797.5634757,0.00031334,2]
[425809627,1781926244000,-375.61,0.00031347,30]
[425809629,1781926244000,-501.18,0.00031353,60]
[425809628,1781926244000,-500.0,0.00031352,7]
[425809630,1781926244000,-501.18,0.00031353,60]
[425809631,1781926244000,-501.18,0.00031353,60]
[425809635,1781926244000,-501.18,0.00031353,60]
[425809634,1781926244000,-501.18,0.00031353,60]
[425809632,1781926244000,-501.18,0.00031353,60]
[425809633,1781926244000,-501.18,0.00031353,60]
[425809636,1781926244000,-501.18,0.00031353,60]
[425809623,1781926244000,-150.0,0.00031294,30]
[425809638,1781926244000,-501.18,0.00031353,60]
[425809639,1781926244000,-501.18,0.00031353,60]
[425809640,1781926244000,-501.18,0.00031353,60]
[425809642,1781926244000,-501.18,0.00031353,60]
[425809641,1781926244000,-501.18,0.00031353,60]
[425809649,1781926244000,-500.0,0.00031356,60]
[425809645,1781926244000,-501.18,0.00031353,60]
[425809644,1781926244000,-501.18,0.00031353,60]
[425809646,1781926244000,-501.18,0.00031353,60]
[425809592,1781926244000,-196.01,0.00031,2]
[425809648,1781926244000,-335.0,0.00031353,60]
[425809647,1781926244000,-501.18,0.00031353,60]
[425809650,1781926244000,-196.94757382,0.00031356,60]
[425809637,1781926244000,-501.18,0.00031353,60]
[425809621,1781926244000,-200.0,0.00031287,2]
[425809643,1781926244000,-501.18,0.00031353,60]
[425809622,1781926244000,-461.84895732,0.0003129,30]
[425809593,1781926244000,-169.76,0.00031,2]
[425809619,1781926244000,-200.0,0.00031207,2]
[425809598,1781926244000,-150.0,0.00031011,2]
[425809600,1781926244000,-276.148327,0.00031027,2]
[425809597,1781926244000,-35173.0,0.00031,2]
[425809599,1781926244000,-14368.0,0.00031014,2]
[425809601,1781926244000,-15560.5023158,0.00031027,2]
[425809604,1781926244000,-505.0,0.00031053,6]
[425809602,1781926244000,-461.84895732,0.00031034,14]
[425809603,1781926244000,-24812.8902072,0.0003105,2]
[425809611,1781926244000,-500.0,0.00031157,21]
[425809607,1781926244000,-1797.5634757,0.00031104,2]
[425809612,1781926244000,-233.5188934,0.00031193,2]
[425809596,1781926244000,-795.48,0.00031,30]
[425809608,1781926244000,-461.84895732,0.00031119,30]
[425809610,1781926244000,-153.66,0.0003115,30]
[425809606,1781926244000,-731.7104239,0.00031083,2]
[425809613,1781926244000,-384.78176723,0.00031193,2]
[425809605,1781926244000,-731.7104239,0.0003106,2]
[425809615,1781926244000,-417.06247972,0.00031193,2]
[425809614,1781926244000,-151.0,0.00031193,2]
[425809616,1781926244000,-9570.0,0.000312,30]
[425809618,1781926244000,-461.84895732,0.00031205,30]
[425809620,1781926244000,-3000.0,0.00031225,3]
[425809617,1781926244000,-1000.0,0.000312,7]
[425809609,1781926244000,-1797.5634757,0.0003114,2]
[425809624,1781926244000,-250.02,0.00031321,19]
[425809686,1781926245000,-549.02210696,0.00031619,2]
[425809685,1781926245000,-597.46,0.00031598,30]
[425809684,1781926245000,-224.59707743,0.00031564,2]
[425809676,1781926245000,-1221.50245601,0.00031531,2]
[425809683,1781926245000,-226.0,0.00031556,60]
[425809679,1781926245000,-502.787504,0.0003154,2]
[425809677,1781926245000,-150.0,0.00031539,2]
[425809678,1781926245000,-70909.76328253,0.0003154,2]
[425809681,1781926245000,-438.3525,0.0003154,2]
[425809688,1781926245000,-166.0,0.00031633,30]
[425809687,1781926245000,-461.84895732,0.00031633,30]
[425809694,1781926245000,-242.15909246,0.00031741,2]
[425809693,1781926245000,-150.317321,0.00031732,52]
[425809690,1781926245000,-1783.53,0.00031671,2]
[425809695,1781926245000,-384.78176723,0.00031741,2]
[425809692,1781926245000,-1549.88,0.00031726,120]
[425809691,1781926245000,-461.84895732,0.00031719,60]
[425809698,1781926245000,-2575.0,0.00031783,10]
[425809699,1781926245000,-461.84895732,0.00031804,60]
[425809697,1781926245000,-417.06247972,0.00031741,2]
[425809696,1781926245000,-151.0,0.00031741,2]
[425809680,1781926245000,-42841.49690439,0.0003154,2]
[425809689,1781926245000,-440.0,0.00031653,2]
[425809682,1781926245000,-461.84895732,0.00031547,30]
[425809664,1781926245000,-150.0,0.00031462,30]
[425809674,1781926245000,-1520.53530786,0.00031527,2]
[425809701,1781926245000,-183.0,0.00031804,60]
[425809651,1781926245000,-400.0,0.00031359,2]
[425809652,1781926245000,-1000.0,0.00031375,2]
[425809653,1781926245000,-461.84895732,0.00031376,30]
[425809657,1781926245000,-3393.48514684,0.00031427,2]
[425809659,1781926245000,-440.0,0.00031441,2]
[425809655,1781926245000,-440.0,0.00031386,2]
[425809661,1781926245000,-1026.41499537,0.00031457,2]
[425809656,1781926245000,-1797.5634757,0.00031415,2]
[425809654,1781926245000,-1797.5634757,0.00031384,2]
[425809660,1781926245000,-1673.01175127,0.00031448,2]
[425809658,1781926245000,-186.36873587,0.0003144,2]
[425809662,1781926245000,-150.0,0.00031462,30]
[425809663,1781926245000,-150.0,0.00031462,30]
[425809667,1781926245000,-461.84895732,0.00031462,30]
[425809665,1781926245000,-150.0,0.00031462,30]
[425809666,1781926245000,-167.0,0.00031462,30]
[425809668,1781926245000,-1797.5634757,0.00031473,2]
[425809671,1781926245000,-150.0,0.00031507,30]
[425809669,1781926245000,-214.37,0.000315,2]
[425809670,1781926245000,-542.68886294,0.00031504,2]
[425809672,1781926245000,-184.4,0.00031507,30]
[425809673,1781926245000,-244.0,0.00031526,5]
[425809675,1781926245000,-1797.5634757,0.00031527,2]
[425809702,1781926245000,-1950.23473544,0.00031836,2]
[425809720,1781926245000,-161.0,0.00031921,30]
[425809705,1781926245000,-461.84895732,0.0003189,60]
[425809732,1781926245000,-200.0,0.00031964,2]
[425809733,1781926245000,-1950.23473544,0.00031965,2]
[425809735,1781926245000,-153.94965239,0.00031976,60]
[425809734,1781926245000,-16140.98860557,0.00031966,2]
[425809736,1781926245000,-150.0,0.00031976,60]
[425809737,1781926245000,-157.0,0.00031976,60]